fUST/lending_fUST_20241114
["ID","MTS","AMOUNT","RATE_DAILY","PERIOD"]
[342221351,1731597052961,-500.0,0.00016712,2]
[342221352,1731597052971,-853.04,0.00016712,2]
[342221353,1731597052980,-500.0,0.00016712,2]
[342221354,1731597052992,-500.0,0.00016712,2]
[342221355,1731597053001,-212.89560175,0.00016712,2]
[342221356,1731597053010,-500.0,0.00016712,2]
[342221357,1731597053020,-509.36411424,0.00016712,2]
[342221358,1731597053029,-500.0,0.00016712,2]
[342221359,1731597053038,-510.81337321,0.00016712,2]
[342221360,1731597053048,-500.0,0.00016712,2]
[342221361,1731597053057,-615.67,0.00016712,2]
[342221362,1731597053066,-500.0,0.00016712,2]
[342221363,1731597053075,-332.80392805,0.00016712,2]
[342221364,1731597053084,-500.0,0.00016712,2]
[342221365,1731597053093,-483.95332901,0.00016712,2]
[342221366,1731597053102,-373.35954709,0.00016712,2]
[342221367,1731597053111,-503.96332278,0.00016712,2]
[342221368,1731597053119,-500.0,0.00016712,2]
[342221369,1731597053128,-635.27348185,0.00016712,2]
[342221370,1731597053137,-500.0,0.00016712,2]
[342221371,1731597053147,-500.0,0.00016712,2]
[342221372,1731597053156,-500.0,0.00016712,2]
[342221373,1731597053165,-592.303162,0.00016712,2]
[342221374,1731597053173,-500.0,0.00016712,2]
[342221375,1731597053183,-592.303162,0.00016712,2]
[342221376,1731597053192,-500.0,0.00016712,2]
[342221377,1731597053201,-519.88811488,0.00016712,2]
[342221378,1731597053210,-500.0,0.00016712,2]
[342221379,1731597053220,-500.0,0.00016712,2]
[342221380,1731597053229,-500.0,0.00016712,2]
[342221381,1731597053240,-516.22118445,0.00016712,2]
[342221382,1731597053250,-500.0,0.00016712,2]
[342221383,1731597053259,-500.0,0.00016712,2]
[342221384,1731597053267,-500.0,0.00016712,2]
[342221385,1731597053277,-500.0,0.00016712,2]
[342221386,1731597053285,-500.0,0.00016712,2]
[342221387,1731597053295,-500.0,0.00016712,2]
[342221388,1731597053304,-500.0,0.00016712,2]
[342221389,1731597053314,-500.0,0.00016712,2]
[342221390,1731597053323,-500.0,0.00016712,2]
[342221391,1731597053331,-504.54011117,0.00016712,2]
[342221392,1731597053341,-151.0,0.00016712,2]
[342221393,1731597053350,-500.94652056,0.00016712,2]
[342221394,1731597053359,-500.0,0.00016712,2]
[342221395,1731597053368,-500.0,0.00016712,2]
[342221396,1731597053485,-515.28031721,0.00016712,2]
[342221397,1731597053497,-500.0,0.00016712,2]
[342221398,1731597053506,-151.0,0.00016712,2]
[342221399,1731597053515,-514.23835042,0.00016712,2]
[342221400,1731597053524,-151.0,0.00016712,2]
[342221401,1731597053533,-151.0,0.00016712,2]
[342221402,1731597053542,-500.0,0.00016712,2]
[342221403,1731597053551,-151.0,0.00016712,2]
[342221404,1731597053560,-218.39329259,0.00016712,2]
[342221405,1731597053569,-500.0,0.00016712,2]
[342221406,1731597053579,-500.0,0.00016712,2]
[342221407,1731597053587,-519.64148118,0.00016712,2]
[342221408,1731597053596,-500.0,0.00016712,2]
[342221409,1731597053606,-500.0,0.00016712,2]
[342221410,1731597053614,-516.91,0.00016712,2]
[342221411,1731597053624,-500.0,0.00016712,2]
[342221412,1731597053633,-500.0,0.00016712,2]
[342221413,1731597053642,-500.0,0.00016712,2]
[342221414,1731597053652,-500.0,0.00016712,2]
[342221415,1731597053661,-501.78642995,0.00016712,2]
[342221416,1731597053671,-500.0,0.00016712,2]
[342221417,1731597053680,-500.0,0.00016712,2]
[342221418,1731597053689,-151.0,0.00016712,2]
[342221419,1731597053698,-525.6252284,0.00016712,2]
[342221420,1731597053707,-502.42094725,0.00016712,2]
[342221421,1731597053716,-277.722639,0.00016712,2]
[342221422,1731597053725,-422.48195345,0.00016712,2]
[342221423,1731597053734,-151.0,0.00016712,2]
[342221424,1731597053745,-151.0,0.00016712,2]
[342221425,1731597053754,-500.0,0.00016712,2]
[342221426,1731597053763,-542.65214331,0.00016712,2]
[342221427,1731597053772,-513.74764567,0.00016712,2]
[342221428,1731597053783,-535.84748027,0.00016712,2]
[342221429,1731597053792,-500.0,0.00016712,2]
[342221430,1731597053802,-500.0,0.00016712,2]
[342221431,1731597053811,-500.0,0.00016712,2]
[342221432,1731597053821,-521.17,0.00016712,2]
[342221433,1731597053831,-500.0,0.00016712,2]
[342221434,1731597053841,-505.85883004,0.00016712,2]
[342221435,1731597053851,-500.0,0.00016712,2]
[342221436,1731597053860,-500.0,0.00016712,2]
[342221437,1731597053870,-349.266067,0.00016712,2]
[342221438,1731597053879,-304.568889,0.00016712,2]
[342221439,1731597053889,-304.568889,0.00016712,2]
[342221440,1731597053899,-349.266067,0.00016712,2]
[342221441,1731597053909,-304.568889,0.00016712,2]
[342221442,1731597053919,-349.266067,0.00016712,2]
[342221443,1731597053929,-304.568889,0.00016712,2]
[342221444,1731597053938,-349.266067,0.00016712,2]
[342221445,1731597053948,-500.0,0.00016712,2]
[342221446,1731597053958,-500.0,0.00016712,2]
[342221447,1731597053967,-500.0,0.00016712,2]
[342221448,1731597053977,-500.0,0.00016712,2]
[342221449,1731597053988,-500.0,0.00016712,2]
[342221450,1731597054002,-500.0,0.00016712,2]
[342221451,1731597054012,-714.41,0.00016712,2]
[342221452,1731597054022,-555.5,0.00016712,2]
[342221453,1731597054032,-500.0,0.00016712,2]
[342221454,1731597054041,-594.98844579,0.00016712,2]
[342221455,1731597054051,-500.0,0.00016712,2]
[342221456,1731597054060,-542.83,0.00016712,2]
[342221457,1731597054070,-503.82801041,0.00016712,2]
[342221458,1731597054079,-497.400473,0.00016712,2]
[342221459,1731597054089,-497.400473,0.00016712,2]
[342221460,1731597054098,-189.28451804,0.00016712,2]
[342221461,1731597054107,-497.400473,0.00016712,2]
[342221462,1731597054117,-497.400473,0.00016712,2]
[342221463,1731597054126,-500.0,0.00016712,2]
[342221464,1731597054136,-497.400473,0.00016712,2]
[342221465,1731597054146,-497.400473,0.00016712,2]
[342221466,1731597054155,-500.0,0.00016712,2]
[342221467,1731597054164,-500.0,0.00016712,2]
[342221468,1731597054173,-505.85884395,0.00016712,2]
[342221469,1731597054183,-419.734976,0.00016712,2]
[342221470,1731597054192,-500.0,0.00016712,2]
[342221471,1731597054201,-500.0,0.00016712,2]
[342221472,1731597054210,-502.88528294,0.00016712,2]
[342221473,1731597054219,-500.0,0.00016712,2]
[342221474,1731597054228,-813.13,0.00016712,2]
[342221475,1731597054239,-500.0,0.00016712,2]
[342221476,1731597054248,-500.0,0.00016712,2]
[342221477,1731597054257,-520.15554299,0.00016712,2]
[342221478,1731597054266,-500.0,0.00016712,2]
[342221479,1731597054275,-500.0,0.00016712,2]
[342221480,1731597054285,-509.34451901,0.00016712,2]
[342221481,1731597054294,-500.0,0.00016712,2]
[342221482,1731597054303,-500.0,0.00016712,2]
[342221483,1731597054312,-500.0,0.00016712,2]
[342221484,1731597054322,-500.0,0.00016712,2]
[342221485,1731597054331,-545.22,0.00016712,2]
[342221486,1731597054341,-588.34668317,0.00016712,2]
[342221487,1731597054351,-500.0,0.00016712,2]
[342221488,1731597054361,-500.0,0.00016712,2]
[342221489,1731597054371,-500.0,0.00016712,2]
[342221490,1731597054380,-500.0,0.00016712,2]
[342221491,1731597054390,-500.0,0.00016712,2]
[342221492,1731597054399,-500.0,0.00016712,2]
[342221493,1731597054409,-500.0,0.00016712,2]
[342221494,1731597054419,-500.0,0.00016712,2]
[342221495,1731597054431,-500.0,0.00016712,2]
[342221496,1731597054440,-500.0,0.00016712,2]
[342221497,1731597054449,-558.82,0.00016712,2]
[342221498,1731597054459,-500.0,0.00016712,2]
[342221499,1731597054469,-500.0,0.00016712,2]
[342221500,1731597054481,-500.0,0.00016712,2]
[342221501,1731597054493,-151.0,0.00016712,2]
[342221502,1731597054503,-151.0,0.00016712,2]
[342221503,1731597054513,-500.0,0.00016712,2]
[342221504,1731597054522,-500.0,0.00016712,2]
[342221505,1731597054532,-500.0,0.00016712,2]
[342221506,1731597054542,-500.0,0.00016712,2]
[342221507,1731597054551,-500.0,0.00016712,2]
[342221508,1731597054560,-500.0,0.00016712,2]
[342221509,1731597054572,-500.0,0.00016712,2]
[342221510,1731597054588,-500.0,0.00016712,2]
[342221511,1731597054603,-500.0,0.00016712,2]
[342221512,1731597054616,-610.68078776,0.00016712,2]
[342221513,1731597054639,-500.0,0.00016712,2]
[342221514,1731597054653,-500.0,0.00016712,2]
[342221515,1731597054668,-500.0,0.00016712,2]
[342221516,1731597054681,-500.0,0.00016712,2]
[342221517,1731597054697,-500.0,0.00016712,2]
[342221518,1731597054711,-500.0,0.00016712,2]
[342221519,1731597054724,-500.0,0.00016712,2]
[342221520,1731597054740,-505.57972858,0.00016712,2]
[342221521,1731597054754,-500.0,0.00016712,2]
[342221522,1731597054771,-570.38,0.00016712,2]
[342221523,1731597054784,-638.45,0.00016712,2]
[342221524,1731597054795,-500.0,0.00016712,2]
[342221525,1731597054810,-524.26322162,0.00016712,2]
[342221526,1731597054826,-548.09,0.00016712,2]
[342221527,1731597054839,-500.0,0.00016712,2]
[342221528,1731597054854,-500.0,0.00016712,2]
[342221529,1731597054869,-511.5327739,0.00016712,2]
[342221530,1731597054882,-500.0,0.00016712,2]
[342221531,1731597054893,-500.0,0.00016712,2]
[342221532,1731597054906,-502.88892463,0.00016712,2]
[342221533,1731597054920,-500.0,0.00016712,2]
[342221534,1731597054936,-500.0,0.00016712,2]
[342221535,1731597054948,-500.0,0.00016712,2]
[342221536,1731597054962,-597.15,0.00016712,2]
[342221537,1731597054975,-200.0,0.00016712,2]
[342221538,1731597054988,-761.287904,0.00016712,2]
[342221539,1731597055001,-761.287904,0.00016712,2]
[342221540,1731597055013,-761.287904,0.00016712,2]
[342221541,1731597055026,-500.0,0.00016712,2]
[342221542,1731597055037,-500.0,0.00016712,2]
[342221543,1731597055048,-500.0,0.00016712,2]
[342221544,1731597055060,-761.287904,0.00016712,2]
[342221545,1731597055073,-761.287904,0.00016712,2]
[342221546,1731597055086,-761.287904,0.00016712,2]
[342221547,1731597055098,-500.0,0.00016712,2]
[342221548,1731597055110,-500.0,0.00016712,2]
[342221549,1731597055121,-500.0,0.00016712,2]
[342221550,1731597055134,-500.0,0.00016712,2]
[342221551,1731597055147,-500.0,0.00016712,2]
[342221552,1731597055159,-503.1378382,0.00016712,2]
[342221553,1731597055171,-502.21664485,0.00016712,2]
[342221554,1731597055183,-521.41766375,0.00016712,2]
[342221555,1731597055195,-500.0,0.00016712,2]
[342221556,1731597055207,-151.0,0.00016712,2]
[342221557,1731597055219,-500.0,0.00016712,2]
[342221558,1731597055232,-151.0,0.00016712,2]
[342221559,1731597055246,-777.17,0.00016712,2]
[342221560,1731597055258,-500.0,0.00016712,2]
[342221561,1731597055270,-500.0,0.00016712,2]
[342221562,1731597055282,-500.0,0.00016712,2]
[342221563,1731597055295,-620.08443441,0.00016712,2]
[342221564,1731597055307,-500.0,0.00016712,2]
[342221565,1731597055319,-508.57807959,0.00016712,2]
[342221566,1731597055332,-500.0,0.00016712,2]
[342221567,1731597055345,-500.0,0.00016712,2]
[342221568,1731597055358,-500.0,0.00016712,2]
[342221569,1731597055372,-549.79306157,0.00016712,2]
[342221570,1731597055387,-500.0,0.00016712,2]
[342221571,1731597055401,-514.27164115,0.00016712,2]
[342221572,1731597055417,-500.0,0.00016712,2]
[342221573,1731597055430,-164.24606114,0.00016712,2]
[342221574,1731597055444,-500.0,0.00016712,2]
[342221575,1731597055457,-512.53383733,0.00016712,2]
[342221576,1731597055470,-640.94,0.00016712,2]
[342221577,1731597055485,-500.0,0.00016712,2]
[342221578,1731597055508,-500.0,0.00016712,2]
[342221579,1731597055521,-500.0,0.00016712,2]
[342221580,1731597055535,-500.0,0.00016712,2]
[342221581,1731597055548,-500.0,0.00016712,2]
[342221582,1731597055561,-500.0,0.00016712,2]
[342221583,1731597055573,-358.20234172,0.00016712,2]
[342221584,1731597055586,-212.57005025,0.00016712,2]
[342221585,1731597055599,-500.0,0.00016712,2]
[342221586,1731597055611,-564.28817649,0.00016712,2]
[342221587,1731597055624,-500.0,0.00016712,2]
[342221588,1731597055636,-500.0,0.00016712,2]
[342221589,1731597055648,-539.44,0.00016712,2]
[342221590,1731597055661,-500.0,0.00016712,2]
[342221591,1731597055675,-350.505597,0.00016712,2]
[342221592,1731597055687,-350.505597,0.00016712,2]
[342221593,1731597055700,-616.05,0.00016712,2]
[342221594,1731597055713,-350.505597,0.00016712,2]
[342221595,1731597055726,-350.505597,0.00016712,2]
[342221596,1731597055741,-502.90547098,0.00016712,2]
[342221597,1731597055751,-350.505597,0.00016712,2]
[342221598,1731597055761,-350.505597,0.00016712,2]
[342221599,1731597055771,-535.28,0.00016712,2]
[342221600,1731597055781,-565.79164387,0.00016712,2]
[342221601,1731597055791,-617.75,0.00016712,2]
[342221602,1731597055801,-500.0,0.00016712,2]
[342221603,1731597055811,-210.87676,0.00016712,2]
[342221604,1731597055820,-210.87676,0.00016712,2]
[342221605,1731597055830,-210.87676,0.00016712,2]
[342221606,1731597055841,-500.0,0.00016712,2]
[342221607,1731597055850,-500.0,0.00016712,2]
[342221608,1731597055859,-500.0,0.00016712,2]
[342221609,1731597055870,-210.87676,0.00016712,2]
[342221610,1731597055879,-210.87676,0.00016712,2]
[342221611,1731597055889,-210.87676,0.00016712,2]
[342221612,1731597055898,-500.0,0.00016712,2]
[342221613,1731597055907,-500.0,0.00016712,2]
[342221614,1731597055916,-500.0,0.00016712,2]
[342221615,1731597055926,-500.0,0.00016712,2]
[342221616,1731597055935,-151.0,0.00016712,2]
[342221617,1731597055945,-151.0,0.00016712,2]
[342221618,1731597056159,-155.750369,0.00016712,2]
[342221619,1731597056175,-500.0,0.00016712,2]
[342221620,1731597056187,-491.58122707,0.00016712,2]
[342221621,1731597056196,-500.0,0.00016712,2]
[342221622,1731597056205,-500.0,0.00016712,2]
[342221623,1731597056215,-500.0,0.00016712,2]
[342221624,1731597056224,-503.19903245,0.00016712,2]
[342221625,1731597056234,-500.0,0.00016712,2]
[342221626,1731597056248,-505.93796287,0.00016712,2]
[342221627,1731597056257,-503.62867911,0.00016712,2]
[342221628,1731597056267,-636.71,0.00016712,2]
[342221629,1731597056276,-500.0,0.00016712,2]
[342221630,1731597056286,-291.443348,0.00016712,2]
[342221631,1731597056295,-500.0,0.00016712,2]
[342221632,1731597056304,-291.443348,0.00016712,2]
[342221633,1731597056313,-291.443348,0.00016712,2]
[342221634,1731597056322,-500.0,0.00016712,2]
[342221635,1731597056331,-151.0,0.00016712,2]
[342221636,1731597056341,-151.0,0.00016712,2]
[342221637,1731597056350,-151.0,0.00016712,2]
[342221638,1731597056359,-500.0,0.00016712,2]
[342221639,1731597056369,-500.0,0.00016712,2]
[342221640,1731597056378,-151.0,0.00016712,2]
[342221641,1731597056387,-226.333826,0.00016712,2]
[342221642,1731597056396,-1592.85,0.00016712,2]
[342221643,1731597056405,-291.443348,0.00016712,2]
[342221644,1731597056415,-291.443348,0.00016712,2]
[342221645,1731597056428,-291.443348,0.00016712,2]
[342221646,1731597056437,-517.88412147,0.00016712,2]
[342221647,1731597056446,-500.0,0.00016712,2]
[342221648,1731597056455,-500.97240136,0.00016712,2]
[342221649,1731597056465,-500.0,0.00016712,2]
[342221650,1731597056475,-589.52,0.00016712,2]
[342221651,1731597056483,-1049.38,0.00016712,2]
[342221652,1731597056497,-500.0,0.00016712,2]
[342221653,1731597056507,-500.0,0.00016712,2]
[342221654,1731597056517,-500.0,0.00016712,2]
[342221655,1731597056527,-500.0,0.00016712,2]
[342221656,1731597056536,-500.0,0.00016712,2]
[342221657,1731597056546,-500.0,0.00016712,2]
[342221658,1731597056555,-511.81430267,0.00016712,2]
[342221659,1731597056565,-500.0,0.00016712,2]
[342221660,1731597056574,-500.0,0.00016712,2]
[342221661,1731597056583,-500.0,0.00016712,2]
[342221662,1731597056592,-500.0,0.00016712,2]
[342221663,1731597056603,-183.849568,0.00016712,2]
[342221664,1731597056612,-183.849568,0.00016712,2]
[342221665,1731597056621,-183.849568,0.00016712,2]
[342221666,1731597056630,-788.8,0.00016712,2]
[342221667,1731597056639,-500.0,0.00016712,2]
[342221668,1731597056648,-183.849568,0.00016712,2]
[342221669,1731597056658,-183.849568,0.00016712,2]
[342221670,1731597056667,-500.0,0.00016712,2]
[342221671,1731597056676,-183.849568,0.00016712,2]
[342221672,1731597056685,-500.0,0.00016712,2]
[342221673,1731597056694,-950.02,0.00016712,2]
[342221674,1731597056703,-500.0,0.00016712,2]
[342221675,1731597056712,-692.64,0.00016712,2]
[342221676,1731597056721,-500.0,0.00016712,2]
[342221677,1731597056730,-180.54341492,0.00016712,2]
[342221678,1731597056742,-1705.94,0.00016712,2]
[342221679,1731597056752,-509.17874417,0.00016712,2]
[342221680,1731597056762,-533.04567309,0.00016712,2]
[342221681,1731597056771,-500.0,0.00016712,2]
[342221682,1731597056780,-500.0,0.00016712,2]
[342221683,1731597056790,-528.91347283,0.00016712,2]
[342221684,1731597056800,-500.0,0.00016712,2]
[342221685,1731597056809,-500.0,0.00016712,2]
[342221686,1731597056819,-500.0,0.00016712,2]
[342221687,1731597056830,-500.0,0.00016712,2]
[342221688,1731597056840,-500.0,0.00016712,2]
[342221689,1731597056849,-500.0,0.00016712,2]
[342221690,1731597056859,-500.0,0.00016712,2]
[342221691,1731597056868,-500.0,0.00016712,2]
[342221692,1731597056878,-1211.36,0.00016712,2]
[342221693,1731597056888,-500.0,0.00016712,2]
[342221694,1731597056897,-1341.99,0.00016712,2]
[342221695,1731597056906,-500.0,0.00016712,2]
[342221696,1731597056916,-500.0,0.00016712,2]
[342221697,1731597056926,-500.0,0.00016712,2]
[342221698,1731597056935,-500.0,0.00016712,2]
[342221699,1731597056946,-500.0,0.00016712,2]
[342221700,1731597056955,-504.1981779,0.00016712,2]
[342221701,1731597056965,-500.0,0.00016712,2]
[342221702,1731597056975,-500.0,0.00016712,2]
[342221703,1731597056985,-1503.18,0.00016712,2]
[342221704,1731597056998,-500.0,0.00016712,2]
[342221705,1731597057008,-585.8,0.00016712,2]
[342221706,1731597057017,-500.0,0.00016712,2]
[342221707,1731597057027,-500.0,0.00016712,2]
[342221708,1731597057036,-590.83978287,0.00016712,2]
[342221709,1731597057046,-503.66431261,0.00016712,2]
[342221710,1731597057055,-500.0,0.00016712,2]
[342221711,1731597057065,-500.0,0.00016712,2]
[342221712,1731597057075,-615.11896936,0.00016712,2]
[342221713,1731597057084,-500.0,0.00016712,2]
[342221714,1731597057094,-500.0,0.00016712,2]
[342221715,1731597057104,-882.36,0.00016712,2]
[342221716,1731597057115,-500.0,0.00016712,2]
[342221717,1731597057124,-500.0,0.00016712,2]
[342221718,1731597057134,-500.0,0.00016712,2]
[342221719,1731597057144,-649.11151312,0.00016712,2]
[342221720,1731597057154,-500.0,0.00016712,2]
[342221721,1731597057164,-500.0,0.00016712,2]
[342221722,1731597057174,-500.0,0.00016712,2]
[342221723,1731597057184,-500.0,0.00016712,2]
[342221724,1731597057194,-500.0,0.00016712,2]
[342221725,1731597057204,-500.0,0.00016712,2]
[342221726,1731597057213,-537.70234795,0.00016712,2]
[342221727,1731597057222,-500.0,0.00016712,2]
[342221728,1731597057232,-500.0,0.00016712,2]
[342221729,1731597057244,-504.3555391,0.00016712,2]
[342221730,1731597057253,-500.0,0.00016712,2]
[342221731,1731597057266,-1850.19,0.00016712,2]
[342221732,1731597057275,-754.96,0.00016712,2]
[342221733,1731597057284,-517.74839569,0.00016712,2]
[342221734,1731597057293,-671.15,0.00016712,2]
[342221735,1731597057302,-500.0,0.00016712,2]
[342221736,1731597057311,-961.33,0.00016712,2]
[342221737,1731597057320,-584.76712782,0.00016712,2]
[342221738,1731597057330,-500.0,0.00016712,2]
[342221739,1731597057339,-500.0,0.00016712,2]
[342221740,1731597057349,-157.705127,0.00016712,2]
[342221741,1731597057359,-500.0,0.00016712,2]
[342221742,1731597057368,-500.0,0.00016712,2]
[342221743,1731597057378,-500.0,0.00016712,2]
[342221744,1731597057388,-500.0,0.00016712,2]
[342221745,1731597057398,-1713.05,0.00016712,2]
[342221746,1731597057407,-500.0,0.00016712,2]
[342221747,1731597057425,-503.93574068,0.00016712,2]
[342221748,1731597057440,-412.00024927,0.00016712,2]
[342221749,1731597057449,-500.0,0.00016712,2]
[342221750,1731597057459,-500.0,0.00016712,2]
[342221751,1731597057471,-500.0,0.00016712,2]
[342221752,1731597057481,-500.0,0.00016712,2]
[342221753,1731597057497,-623.84,0.00016712,2]
[342221754,1731597057508,-500.0,0.00016712,2]
[342221755,1731597057518,-500.0,0.00016712,2]
[342221756,1731597057527,-500.0,0.00016712,2]
[342221757,1731597057536,-1026.35,0.00016712,2]
[342221758,1731597057546,-500.0,0.00016712,2]
[342221759,1731597057555,-500.0,0.00016712,2]
[342221760,1731597057565,-500.0,0.00016712,2]
[342221761,1731597057574,-2653.38,0.00016712,2]
[342221762,1731597057584,-684.68,0.00016712,2]
[342221763,1731597057594,-339.97128374,0.00016712,2]
[342221764,1731597057604,-557.5004738,0.00016712,2]
[342221765,1731597057614,-651.58,0.00016712,2]
[342221766,1731597057623,-500.0,0.00016712,2]
[342221767,1731597057632,-500.0,0.00016712,2]
[342221768,1731597057641,-500.0,0.00016712,2]
[342221769,1731597057651,-500.0,0.00016712,2]
[342221770,1731597057660,-934.5,0.00016712,2]
[342221771,1731597057669,-616.11283335,0.00016712,2]
[342221772,1731597057679,-500.0,0.00016712,2]
[342221773,1731597057688,-654.07,0.00016712,2]
[342221774,1731597057698,-500.0,0.00016712,2]
[342221775,1731597057707,-500.0,0.00016712,2]
[342221776,1731597057716,-500.0,0.00016712,2]
[342221777,1731597057725,-500.0,0.00016712,2]
[342221778,1731597057735,-913.47,0.00016712,2]
[342221779,1731597057752,-500.0,0.00016712,2]
[342221780,1731597057764,-500.0,0.00016712,2]
[342221781,1731597057773,-500.0,0.00016712,2]
[342221782,1731597057782,-500.0,0.00016712,2]
[342221783,1731597057791,-500.0,0.00016712,2]
[342221784,1731597057800,-500.0,0.00016712,2]
[342221785,1731597057810,-1899.22,0.00016712,2]
[342221786,1731597057820,-500.0,0.00016712,2]
[342221787,1731597057829,-500.0,0.00016712,2]
[342221788,1731597057839,-504.12257384,0.00016712,2]
[342221789,1731597057848,-3864.77,0.00016712,2]
[342221790,1731597057857,-500.0,0.00016712,2]
[342221791,1731597057867,-643.63,0.00016712,2]
[342221792,1731597057876,-500.0,0.00016712,2]
[342221793,1731597057885,-726.19,0.00016712,2]
[342221794,1731597057895,-500.0,0.00016712,2]
[342221795,1731597057904,-502.11952343,0.00016712,2]
[342221796,1731597057913,-585.4,0.00016712,2]
[342221797,1731597057922,-500.0,0.00016712,2]
[342221798,1731597057931,-518.50465699,0.00016712,2]
[342221799,1731597057941,-500.0,0.00016712,2]
[342221800,1731597057950,-1279.89,0.00016712,2]
[342221801,1731597057960,-259.765742,0.00016712,2]
[342221802,1731597057969,-259.765742,0.00016712,2]
[342221803,1731597057978,-259.765742,0.00016712,2]
[342221804,1731597057987,-500.0,0.00016712,2]
[342221805,1731597057999,-174.30000382,0.00016712,2]
[342221806,1731597058009,-500.0,0.00016712,2]
[342221807,1731597058019,-501.56972315,0.00016712,2]
[342221808,1731597058028,-151.0,0.00016712,2]
[342221809,1731597058039,-151.0,0.00016712,2]
[342221810,1731597058049,-151.0,0.00016712,2]
[342221811,1731597058059,-552.98,0.00016712,2]
[342221812,1731597058069,-500.0,0.00016712,2]
[342221813,1731597058078,-259.765742,0.00016712,2]
[342221814,1731597058088,-259.765742,0.00016712,2]
[342221815,1731597058098,-259.765742,0.00016712,2]
[342221816,1731597058108,-2380.240833,0.00016712,2]
[342221817,1731597058118,-2380.240833,0.00016712,2]
[342221818,1731597058128,-2380.240833,0.00016712,2]
[342221819,1731597058138,-500.0,0.00016712,2]
[342221820,1731597058148,-500.0,0.00016712,2]
[342221821,1731597058157,-500.0,0.00016712,2]
[342221822,1731597058167,-2380.240833,0.00016712,2]
[342221823,1731597058176,-500.0,0.00016712,2]
[342221824,1731597058186,-2380.240833,0.00016712,2]
[342221825,1731597058195,-2380.240833,0.00016712,2]
[342221826,1731597058205,-616.87,0.00016712,2]
[342221827,1731597058214,-507.36469544,0.00016712,2]
[342221828,1731597058223,-500.0,0.00016712,2]
[342221829,1731597058233,-584.67,0.00016712,2]
[342221830,1731597058247,-642.81,0.00016712,2]
[342221831,1731597058257,-500.0,0.00016712,2]
[342221832,1731597058266,-898.023459,0.00016712,2]
[342221833,1731597058276,-898.023459,0.00016712,2]
[342221834,1731597058286,-898.023459,0.00016712,2]
[342221835,1731597058295,-500.0,0.00016712,2]
[342221836,1731597058305,-6521.63,0.00016712,2]
[342221837,1731597058315,-898.023459,0.00016712,2]
[342221838,1731597058324,-898.023459,0.00016712,2]
[342221839,1731597058333,-898.023459,0.00016712,2]
[342221840,1731597058343,-517.47709144,0.00016712,2]
[342221841,1731597058352,-454.64787187,0.00016712,2]
[342221842,1731597058361,-500.0,0.00016712,2]
[342221843,1731597058371,-500.0,0.00016712,2]
[342221844,1731597058380,-500.0,0.00016712,2]
[342221845,1731597058389,-779.32,0.00016712,2]
[342221846,1731597058398,-500.0,0.00016712,2]
[342221847,1731597058408,-500.0,0.00016712,2]
[342221848,1731597058417,-11398.1,0.00016712,2]
[342221849,1731597058431,-500.0,0.00016712,2]
[342221850,1731597058441,-754.56,0.00016712,2]